bitfinex-derivatives/quotes_ETHF0:USTF0_20240928
["timestamp","ask_amount","ask_price","bid_price","bid_amount"]
[1727565331989,7.92175,2674.9,2674.8,3.34957065]
[1727565332393,7.92175,2674.9,2674.8,3.72333065]
[1727565333785,7.92175,2674.9,2674.8,2.2516321]
[1727565333987,7.92175,2674.9,2674.8,3.72333065]
[1727565334287,1.34,2674.9,2674.8,3.72333065]
[1727565334494,1.34,2674.9,2674.8,3.7232546]
[1727565335996,1.34,2674.9,2674.8,3.72316279]
[1727565340986,1.34,2674.9,2674.8,3.72321908]
[1727565341397,1.71375,2674.9,2674.8,3.72321908]
[1727565343300,1.34,2674.9,2674.8,3.72321908]
[1727565347501,1.71375,2674.9,2674.8,3.72321908]
[1727565350699,1.71375,2674.9,2674.8,3.72341491]
[1727565357612,1.71375,2674.9,2674.8,3.34965491]
[1727565359509,1.71375,2674.9,2674.8,3.72341491]
[1727565360421,1.71375,2674.9,2674.8,3.72363315]
[1727565364620,2.09065,2674.9,2674.8,3.72363315]
[1727565364819,2.09065,2674.9,2674.8,2.25201065]
[1727565365518,2.09065,2674.9,2674.8,3.72415164]
[1727565365821,2.09065,2674.9,2674.8,3.72416733]
[1727565366023,1.7169,2674.9,2674.8,3.72416733]
[1727565367025,1.7169,2674.9,2674.8,2.25201065]
[1727565367219,0.3769,2674.9,2674.8,2.25201065]
[1727565368930,0.3769,2674.9,2674.8,0.77546]
[1727565369124,0.3769,2674.9,2674.8,2.2519736]
[1727565371422,6.5849,2674.9,2674.8,2.2519736]
[1727565371629,0.3769,2674.9,2674.8,2.2519736]
[1727565372028,0.3769,2674.9,2674.8,3.72409389]
[1727565372923,0.3769,2674.9,2674.8,2.2519736]
[1727565373922,0.3769,2674.9,2674.8,2.25201991]
[1727565376431,0.3769,2674.9,2674.8,3.72369798]
[1727565376624,0.3769,2674.9,2674.8,2.25201991]
[1727565379529,0.3769,2674.9,2674.8,4.21208459]
[1727565380224,0.3769,2674.9,2674.8,2.25201991]
[1727565381028,0.3769,2674.9,2674.8,4.21208459]
[1727565381539,0.3769,2674.9,2674.8,2.25201991]
[1727565385234,0.3769,2674.9,2674.8,2.25022812]
[1727565388939,0.3769,2674.9,2674.8,2.25017155]
[1727565393734,0.3769,2674.9,2674.8,2.25033971]
[1727565398741,0.3769,2674.9,2674.8,2.25063514]
[1727565402041,0.3769,2674.9,2674.8,4.21069982]
[1727565402947,0.3769,2674.9,2674.8,2.25063514]
[1727565405151,0.3769,2674.9,2674.8,4.21069982]
[1727565406445,0.3769,2674.9,2674.8,2.25063514]
[1727565406745,0.3769,2674.9,2674.8,4.21069982]
[1727565406942,0.3769,2674.9,2674.8,2.25063514]
[1727565407143,0.3769,2674.9,2674.8,4.21069982]
[1727565408252,0.3769,2674.9,2674.8,2.25063514]
[1727565411449,0.3769,2674.9,2674.8,4.21069982]
[1727565411645,0.3769,2674.9,2674.8,4.74287366]
[1727565412445,0.3769,2674.9,2674.8,4.21069982]
[1727565413450,0.3769,2674.9,2674.8,4.21107178]
[1727565413643,0.3769,2674.9,2674.8,4.74325422]
[1727565415148,0.3769,2674.9,2674.8,2.78318954]
[1727565415544,0.3769,2674.9,2674.8,4.74325422]
[1727565416448,0.3769,2674.9,2674.8,4.7432536]
[1727565417639,0.3769,2674.9,2674.8,7.69440093]
[1727565417842,0.3769,2674.9,2674.8,7.69437798]
[1727565418040,0.3769,2674.9,2674.8,4.7432536]
[1727565418452,0.3769,2674.9,2674.8,4.74332406]
[1727565420053,0.3769,2674.9,2674.8,7.69452024]
[1727565420450,0.3769,2674.9,2674.8,4.74332406]
[1727565421849,0.3769,2674.9,2674.8,7.69457056]
[1727565422448,1.7204,2675.0,2674.9,0.37375]
[1727565422760,1.7204,2675.0,2674.9,1.84937135]
[1727565422952,1.7204,2675.0,2674.9,2.23457135]
[1727565425755,1.7204,2675.0,2674.9,3.70629901]
[1727565426760,1.7204,2675.0,2674.9,2.23457135]
[1727565426961,1.7204,2675.0,2674.9,2.23509319]
[1727565428360,1.7204,2675.0,2674.9,3.70704251]
[1727565429262,1.7204,2675.0,2674.9,2.23509319]
[1727565430761,1.7204,2675.0,2674.9,3.70708426]
[1727565430961,1.7204,2675.0,2674.9,2.23509319]
[1727565431265,1.7204,2675.0,2674.9,3.70709685]
[1727565431861,1.7204,2675.0,2674.9,3.70742978]
[1727565433054,1.7204,2675.0,2674.9,3.70742873]
[1727565438460,1.7204,2675.0,2674.9,3.70726315]
[1727565438662,1.7204,2675.0,2674.9,3.70727021]
[1727565438874,1.7204,2675.0,2674.9,3.70728045]
[1727565439767,1.7204,2675.0,2674.9,2.23542507]
[1727565441770,1.7204,2675.0,2674.9,2.23524331]
[1727565441978,1.7204,2675.0,2674.9,3.70710722]
[1727565443370,1.7204,2675.0,2674.9,2.23524331]
[1727565443672,1.7204,2675.0,2674.9,3.70713662]
[1727565445070,5.30193,2675.0,2674.9,2.94818662]
[1727565445276,5.30193,2675.0,2674.9,2.94836543]
[1727565446169,5.30193,2675.0,2674.9,1.47647212]
[1727565446382,5.30193,2675.0,2674.9,2.45779172]
[1727565446571,5.30193,2675.0,2674.9,0.9813196]
[1727565446765,5.30193,2675.0,2674.9,2.45769636]
[1727565446960,5.30193,2675.0,2674.9,1.47637676]
[1727565447166,5.30193,2675.0,2674.9,2.94827007]
[1727565447361,2.09413,2675.0,2674.9,2.94827007]
[1727565447567,2.09413,2675.0,2674.9,1.47637676]
[1727565447874,5.30193,2675.0,2674.9,2.94827007]
[1727565448070,5.30193,2675.0,2674.9,2.4574253]
[1727565448475,5.30193,2675.0,2674.9,1.47637676]
[1727565450277,5.30193,2675.0,2674.9,2.45739997]
[1727565450971,2.09413,2675.0,2674.9,2.45739997]
[1727565451168,2.09413,2675.0,2674.9,1.47637676]
[1727565451475,5.30193,2675.0,2674.9,2.94764107]
[1727565451773,11.50993,2675.0,2674.9,2.94764107]
[1727565452081,8.30213,2675.0,2674.9,1.47574776]
[1727565452369,11.50993,2675.0,2674.9,1.47574776]
[1727565452576,11.50993,2675.0,2674.9,2.45667427]
[1727565453182,11.50993,2675.0,2674.9,1.47574776]
[1727565453479,8.30213,2675.0,2674.9,2.94764107]
[1727565454275,11.50993,2675.0,2674.9,2.94764107]
[1727565454780,11.50993,2675.0,2674.9,1.47574776]
[1727565455077,11.50993,2675.0,2674.9,2.94764107]
[1727565456466,11.50993,2675.0,2674.9,2.94758197]
[1727565458377,11.50993,2675.0,2674.9,1.47568866]
[1727565459178,8.30213,2675.0,2674.9,1.47568866]
[1727565459484,8.30213,2675.0,2674.9,2.94758197]
[1727565460169,8.30213,2675.0,2674.9,1.47568866]
[1727565460366,8.30213,2675.0,2674.9,0.98087632]
[1727565460367,12.97487,2675.0,2674.9,0.98087632]
[1727565460571,0.37375,2674.9,2674.8,0.98087632]
[1727565460781,2.09085,2674.9,2674.8,0.98087632]
[1727565461781,8.29885,2674.9,2674.8,0.98087632]
[1727565464975,8.66785,2674.9,2674.8,0.98087632]
[1727565466582,0.37376,2674.8,2674.7,1.35465632]
[1727565466782,0.37376,2674.8,2674.7,2.82959863]
[1727565467470,0.37376,2674.8,2674.7,1.84872231]
[1727565469483,0.37376,2674.8,2674.7,3.32061562]
[1727565469883,0.37373,2675.0,2674.9,0.37374]
[1727565470084,1.71373,2675.0,2674.9,0.37374]
[1727565470478,1.71373,2675.0,2674.9,0.75074]
[1727565470678,1.34,2675.0,2674.9,0.75074]
[1727565471788,7.548,2675.0,2674.9,0.75074]
[1727565474287,10.7558,2675.0,2674.9,0.75074]
[1727565476093,10.7558,2675.0,2674.9,1.73088479]
[1727565476288,11.12953,2675.0,2674.9,1.73088479]
[1727565477292,7.92173,2675.0,2674.9,1.73088479]
[1727565477591,11.12953,2675.0,2674.9,1.73088479]
[1727565478398,7.92173,2675.0,2674.9,1.73088479]
[1727565478894,7.92173,2675.0,2674.9,1.35714479]
[1727565479198,7.92173,2675.0,2674.9,1.73089479]
[1727565479590,7.92173,2675.0,2674.9,1.35714479]
[1727565483796,1.34,2675.0,2674.9,1.73089479]
[1727565483992,1.34,2675.0,2674.9,3.20564448]
[1727565484302,1.34,2675.0,2674.9,3.697393]
[1727565484495,1.34,2675.0,2674.9,3.6973427]
[1727565485398,1.34,2675.0,2674.9,3.20563685]
[1727565489503,1.34,2675.0,2674.9,2.22544939]
[1727565489698,1.34,2675.0,2674.9,3.6973427]
[1727565490399,0.348,2675.4,2675.3,0.37369]
[1727565490596,1.34,2675.7,2675.4,0.37367]
[1727565490797,1.71364,2675.7,2675.6,1.4690834]
[1727565490997,1.71364,2675.7,2675.6,2.94378279]
[1727565491202,1.71364,2675.7,2675.6,0.97853978]
[1727565491391,1.34,2675.7,2675.6,0.97853978]
[1727565491797,1.34,2675.7,2675.5,2.15239978]
[1727565492406,1.716,2675.7,2675.5,2.15239978]
[1727565492705,1.716,2675.7,2675.6,0.37365]
[1727565492906,1.716,2675.7,2675.5,2.15238978]
[1727565493209,1.716,2675.7,2675.5,1.17385]
[1727565493409,1.716,2675.7,2675.6,0.37365]
[1727565503412,0.37365,2675.6,2675.5,0.8002]
[1727565503616,7.14213,2675.6,2675.1,0.46072]
[1727565503911,7.14213,2675.6,2675.1,0.3874]
[1727565503912,1.71371,2675.2,2675.1,0.3874]
[1727565504713,1.71371,2675.2,2675.0,1.15392]
[1727565504914,0.37373,2675.0,2674.9,0.3874]
[1727565505215,10.7558,2675.2,2674.7,0.37377]
[1727565505216,0.37376,2674.8,2674.7,0.37377]
[1727565505411,1.34,2674.9,2674.6,2.13251978]
[1727565505412,0.37378,2674.7,2674.6,2.13251978]
[1727565505625,1.34,2674.7,2674.6,1.37573978]
[1727565505914,1.71378,2674.7,2674.6,0.3972]
[1727565506408,0.37379,2674.6,2674.5,0.3874]
[1727565507411,1.34,2674.7,2674.5,0.7612]
[1727565507714,1.71378,2674.7,2674.5,0.7612]
[1727565508311,0.37379,2674.6,2674.5,0.7612]
[1727565508819,0.37379,2674.6,2674.5,1.73973978]
[1727565509020,0.37379,2674.6,2674.5,0.7612]
[1727565509523,1.71378,2674.7,2674.5,0.7612]
[1727565510915,0.37379,2674.6,2674.5,0.7612]
[1727565511316,1.71379,2674.7,2674.5,0.7612]
[1727565511712,1.71379,2674.7,2674.5,0.3874]
[1727565511913,1.34,2674.7,2674.6,0.37379]
[1727565513311,1.34,2674.7,2674.5,0.76119]
[1727565513609,1.71378,2674.7,2674.5,0.3874]
[1727565514010,1.71378,2674.7,2674.6,0.37379]
[1727565514211,1.71378,2674.7,2674.5,0.7612]
[1727565514615,0.37379,2674.6,2674.5,0.3874]
[1727565514922,0.37379,2674.6,2674.4,0.37381]
[1727565515121,1.7367,2674.5,2674.4,0.37381]
[1727565515625,1.7367,2674.5,2674.3,1.35235978]
[1727565515822,1.7367,2674.5,2674.2,8.9612567]
[1727565516014,1.34,2674.3,2674.2,8.35656692]
[1727565520712,1.34,2674.3,2674.2,8.73726692]
[1727565524025,1.34,2674.3,2674.2,8.35656692]
[1727565524319,1.71383,2674.3,2674.2,7.98271692]
[1727565524918,0.37386,2674.1,2674.0,3.5914]
[1727565525220,0.37386,2674.1,2674.0,3.2078]
[1727565525221,1.71386,2674.1,2674.0,3.2078]
[1727565525819,1.71386,2674.1,2674.0,3.58167]
[1727565526419,1.34,2674.1,2674.0,3.58167]
[1727565528623,7.548,2674.1,2674.0,3.58167]
[1727565528928,7.92186,2674.1,2674.0,3.58167]
[1727565529125,7.548,2674.1,2674.0,3.58167]
[1727565530318,7.548,2674.1,2674.0,0.37387]
[1727565534320,1.7412,2674.2,2674.1,0.37386]
[1727565546242,2.11505,2674.2,2674.1,0.37386]
[1727565547137,2.11505,2674.2,2674.0,0.37386]
[1727565547333,2.11505,2674.2,2674.1,0.3891]
[1727565547539,2.11505,2674.2,2674.1,0.7768]
[1727565551044,2.11505,2674.2,2674.1,1.15066]
[1727565551241,1.7412,2674.2,2673.9,0.97853978]
[1727565551454,1.71387,2674.0,2673.9,1.37193978]
[1727565551654,1.71387,2674.0,2673.9,2.84521603]
[1727565551855,1.71387,2674.0,2673.9,3.21910603]
[1727565552352,1.34,2674.0,2673.9,3.21910603]
[1727565552856,1.34,2674.0,2673.9,2.24056625]
[1727565553158,1.34,2674.0,2673.9,3.2200003]
[1727565553458,1.71387,2674.0,2673.9,3.22010714]
[1727565554355,1.71387,2674.0,2673.9,2.24056625]
[1727565554662,1.71387,2674.0,2673.9,3.22022672]
[1727565555257,1.71387,2674.0,2673.9,3.22034294]
[1727565555453,1.71387,2674.0,2673.9,3.22034317]
[1727565555763,1.71387,2674.0,2673.9,3.22034817]
[1727565556353,1.71387,2674.0,2673.9,3.22118834]
[1727565557164,1.71387,2674.0,2673.9,3.71048982]
[1727565561061,1.34,2674.0,2673.9,3.71048982]
[1727565561269,1.34,2674.0,2673.9,2.24278662]
[1727565563872,0.37387,2674.1,2674.0,0.37387]
[1727565564073,0.37387,2674.1,2674.0,3.32075246]
[1727565566972,0.37387,2674.1,2674.0,2.94688246]
[1727565568671,6.58187,2674.1,2674.0,1.47549662]
[1727565569068,7.92187,2674.1,2674.0,1.47549662]
[1727565569668,7.92187,2674.1,2674.0,1.84936662]
[1727565571175,7.92187,2674.1,2674.0,1.85047471]
[1727565572071,7.92187,2674.1,2674.0,1.47660471]
[1727565572276,7.92187,2674.1,2674.0,1.85047471]
[1727565572569,7.548,2674.1,2674.0,1.85047471]
[1727565572771,7.548,2674.1,2674.0,3.80924595]
[1727565573675,7.548,2674.1,2674.0,1.85047471]
[1727565576071,7.92186,2674.1,2674.0,1.85051896]
[1727565579081,7.92186,2674.1,2674.0,3.8092902]
[1727565579383,7.92186,2674.1,2674.0,1.85051896]
[1727565581182,7.92186,2674.1,2674.0,1.85051814]
[1727565581376,1.34,2674.1,2674.0,3.80928938]
[1727565582877,1.34,2674.1,2674.0,6.76255687]
[1727565584984,1.34,2674.1,2674.0,6.76022802]
[1727565585284,1.34,2674.1,2674.0,7.2927813]
[1727565585980,7.7289,2674.4,2674.3,0.37383]
[1727565586180,3.37786953,2674.7,2674.4,0.37381]
[1727565586181,1.34,2674.5,2674.4,0.37381]
[1727565586382,1.34,2674.5,2674.4,3.01455685]
[1727565586591,1.34,2674.5,2674.4,4.97333809]
[1727565586880,1.34,2674.5,2674.4,3.01456685]
[1727565587087,1.34,2674.5,2674.4,4.48637935]
[1727565587677,1.7138,2674.5,2674.4,4.11255935]
[1727565587981,1.7138,2674.5,2674.4,4.48637935]
[1727565588575,1.34,2674.5,2674.4,4.48637935]
[1727565588971,7.549,2674.5,2674.4,4.48637935]
[1727565589178,1.34,2674.5,2674.4,4.48637935]
[1727565589370,1.7138,2674.5,2674.4,4.11255935]
[1727565590972,1.7138,2674.5,2674.4,4.11145544]
[1727565591172,1.7138,2674.5,2674.4,2.63964294]
[1727565591381,1.7138,2674.5,2674.4,3.01346294]
[1727565593077,1.7138,2674.5,2674.4,3.99387316]
[1727565594680,1.34,2674.5,2674.4,3.01346294]
[1727565594987,1.34,2674.5,2674.4,4.48527544]
[1727565595287,3.6003,2674.7,2674.6,0.37379]
[1727565595590,4.9403,2674.7,2674.6,0.37379]
[1727565595889,4.9403,2674.7,2674.6,1.35397578]
[1727565596979,1.34,2674.7,2674.6,1.35397578]
[1727565597984,0.3901,2674.9,2674.8,0.37376]
[1727565598189,2.10385,2674.9,2674.8,0.37376]
[1727565598578,1.7301,2674.9,2674.8,0.37376]
[1727565599175,1.7301,2674.9,2674.8,0.76326]
[1727565599384,2.10385,2674.9,2674.8,0.76326]
[1727565600477,1.7301,2674.9,2674.8,0.76326]
[1727565600686,0.3901,2674.9,2674.8,0.76326]
[1727565600879,1.34,2675.1,2675.0,0.37373]
[1727565601281,0.348,2675.3,2675.0,3.7384]
[1727565601590,1.34,2675.3,2675.2,1.35303566]
[1727565601778,1.34,2675.3,2675.2,1.84653894]
[1727565601983,1.34,2675.3,2675.2,4.07375144]
[1727565603079,1.34,2675.3,2675.2,2.60193894]
[1727565603390,1.34,2675.3,2675.2,0.383]
[1727565603583,1.7094,2675.3,2675.2,0.75671]
[1727565607984,0.3694,2675.3,2675.2,0.75671]
[1727565608188,1.34,2675.3,2675.2,0.75671]
[1727565639132,1.34,2675.3,2675.2,1.73493677]
[1727565641240,1.34,2675.3,2675.2,3.20922695]
[1727565641629,1.34,2675.3,2675.2,1.73589466]
[1727565641941,1.34,2675.3,2675.2,3.2092137]
[1727565642134,1.34,2675.3,2675.2,3.31884154]
[1727565642335,1.34,2675.3,2675.2,1.35321409]
[1727565643141,1.34,2675.3,2675.2,1.84811632]
[1727565643632,1.34,2675.3,2675.2,3.31992882]
[1727565643836,1.34,2675.3,2675.2,1.84811632]
[1727565644240,1.34,2675.3,2675.2,3.31992882]
[1727565645134,1.34,2675.3,2675.2,1.84811632]
[1727565647837,1.34,2675.3,2675.2,1.8498025]
[1727565648239,1.34,2675.3,2675.2,3.80857374]
[1727565652843,1.34,2675.3,2675.2,3.80853163]
[1727565653438,7.549,2675.3,2675.2,3.80853163]
[1727565653642,1.34,2675.3,2675.2,3.80853163]
[1727565655548,1.34,2675.3,2675.2,1.84976039]
[1727565656345,1.34,2675.3,2675.2,3.32130947]
[1727565657243,1.34,2675.3,2675.2,1.84976039]
[1727565657741,1.34,2675.3,2675.2,1.84974953]
[1727565657942,1.34,2675.3,2675.2,3.32130795]
[1727565658138,1.34,2675.3,2675.2,1.84974953]
[1727565658441,1.34,2675.3,2675.2,3.32130101]
[1727565659435,1.34,2675.3,2675.2,1.84974953]
[1727565660249,1.34,2675.3,2675.2,3.32126817]
[1727565661052,1.34,2675.3,2675.2,3.32127989]
[1727565661351,1.34,2675.3,2675.2,1.84976125]
[1727565662145,4.92149,2675.3,2675.2,2.94756878]
[1727565662542,5.85573,2675.3,2675.2,2.94756878]
[1727565662949,5.85573,2675.3,2675.2,1.47605125]
[1727565663351,5.85573,2675.3,2675.2,2.94756878]
[1727565663652,12.06473,2675.3,2675.2,2.94756878]
[1727565663847,15.80233,2675.3,2675.2,2.94756878]
[1727565664152,15.80233,2675.3,2675.2,1.47605125]
[1727565664351,15.80233,2675.3,2675.2,2.45708844]
[1727565664550,7.51698,2675.2,2675.1,0.98103719]
[1727565664747,12.04508,2675.2,2675.1,0.98102489]
[1727565664950,0.37372,2675.1,2675.0,0.98102489]
[1727565665246,5.83282,2675.1,2675.0,2.45698511]
[1727565665442,5.83282,2675.1,2675.0,0.98102489]
[1727565666654,0.37373,2675.0,2674.9,1.35477489]
[1727565666848,4.92153,2675.0,2674.9,2.83010186]
[1727565667149,14.86893,2675.0,2674.9,2.45635186]
[1727565667350,14.86893,2675.0,2674.9,0.98102489]
[1727565668453,0.37377,2674.8,2674.6,0.98102489]
[1727565668647,2.4955,2674.7,2674.5,0.98102489]
[1727565668950,2.4955,2674.7,2674.5,1.35481489]
[1727565668951,2.86928,2674.7,2674.5,1.35481489]
[1727565669542,2.86928,2674.7,2674.5,0.37379]
[1727565671453,0.3738,2674.6,2674.4,1.35483489]
[1727565671650,1.34,2674.5,2674.3,1.74574489]
[1727565671853,0.37382,2674.4,2674.3,0.98102489]
[1727565672155,0.37383,2674.3,2674.2,0.98102489]
[1727565672355,0.37383,2674.3,2674.1,3.95795]
[1727565672356,0.37385,2674.2,2674.1,0.98102489]
[1727565672553,0.37385,2674.2,2674.0,1.35488489]
[1727565672855,1.34,2674.1,2674.0,1.35488489]
[1727565673555,1.34,2674.1,2674.0,0.37386]
[1727565673941,1.7092,2674.1,2674.0,0.37386]
[1727565677553,1.7092,2674.1,2673.9,0.7977]
[1727565678360,1.7092,2674.1,2674.0,0.37387]
[1727565678856,2.08306,2674.1,2673.9,1.17159]
[1727565682860,1.7092,2674.1,2673.9,1.17159]
[1727565683253,2.08306,2674.1,2673.9,1.17159]
[1727565684462,0.37387,2674.0,2673.9,0.7977]
[1727565684862,2.08307,2674.1,2673.9,0.7977]
[1727565685061,2.08307,2674.1,2673.9,1.17158]
[1727565685261,1.7092,2674.1,2673.9,1.17158]
[1727565685962,2.08306,2674.1,2673.9,1.17158]
[1727565686357,1.7092,2674.1,2674.0,0.37387]
[1727565688566,2.08306,2674.1,2673.9,1.17158]
[1727565689265,1.7092,2674.1,2674.0,0.37387]
[1727565689862,2.08307,2674.1,2673.9,0.7977]
[1727565690860,2.08307,2674.1,2673.9,1.17158]
[1727565691470,2.08307,2674.1,2674.0,0.37387]
[1727565691766,2.08307,2674.1,2673.9,1.17158]
[1727565693462,0.37387,2674.0,2673.9,0.3989]
[1727565693656,0.37387,2674.0,2673.6,0.087]
[1727565693657,6.209,2673.9,2673.6,0.4726]
[1727565693858,0.37393,2673.6,2673.5,0.4032]
[1727565694064,1.71393,2673.6,2673.5,0.4032]
[1727565695157,0.37394,2673.5,2673.4,0.3925]
[1727565695562,0.76564,2673.5,2673.4,0.3925]
[1727565696168,0.37396,2673.4,2673.3,0.4032]
[1727565696468,8.6899,2673.4,2673.1,0.3681]
[1727565696668,1.71398,2673.2,2673.1,0.3681]
[1727565697257,1.71398,2673.2,2672.9,0.4063]
[1727565697258,0.37401,2673.1,2672.9,0.4063]
[1727565697462,1.71401,2673.0,2672.9,0.4063]
[1727565697670,2.11531,2673.0,2672.9,0.4063]
[1727565698469,2.1232,2673.0,2672.9,0.4063]
[1727565699267,2.49721,2673.0,2672.9,0.4063]
[1727565703569,8.70621,2673.0,2672.9,0.4063]
[1727565704477,8.70621,2673.0,2672.8,0.37403]
[1727565704668,9.09901,2673.0,2672.8,0.37403]
[1727565705175,8.725,2673.0,2672.7,0.7752]
[1727565705471,1.34,2672.8,2672.7,0.7752]
[1727565705676,1.34,2672.8,2672.7,1.14925]
[1727565706777,1.34,2672.8,2672.7,0.7752]
[1727565707079,1.34,2672.8,2672.6,0.74726]
[1727565707080,1.34,2672.8,2672.6,0.37406]
[1727565707474,1.34,2672.8,2672.7,0.37405]
[1727565713572,7.549,2672.8,2672.7,0.37405]
[1727565713782,1.34,2672.8,2672.7,0.37405]
[1727565723590,1.71405,2672.8,2672.6,0.37406]
[1727565723779,1.7426,2672.7,2672.6,0.37406]
[1727565724294,2.11666,2672.7,2672.5,1.18787]
[1727565724585,1.7426,2672.7,2672.6,0.37407]
[1727565725186,2.11665,2672.7,2672.5,1.18787]
[1727565725389,1.7426,2672.7,2672.6,0.37407]
[1727565728386,2.11666,2672.7,2672.5,1.18788]
[1727565728589,1.7426,2672.7,2672.6,0.37407]
[1727565730991,7.14418,2672.6,2672.1,3.2948]
[1727565731190,7.14418,2672.6,2672.0,0.7821]
[1727565731191,0.37414,2672.1,2672.0,0.7821]
[1727565731694,1.14824,2672.1,2672.0,0.7821]
[1727565731894,0.7741,2672.1,2672.0,0.7821]
[1727565732097,1.14824,2672.1,2672.0,0.7821]
[1727565732394,0.7741,2672.1,2672.0,0.7821]
[1727565732598,0.7741,2672.1,2672.0,1.15625]
[1727565733697,6.9831,2672.1,2672.0,1.15625]
[1727565733889,0.7741,2672.1,2672.0,1.15625]
[1727565735093,14.5063,2672.1,2671.7,0.37418]
[1727565735287,1.34,2671.8,2671.6,0.7833]
[1727565735488,1.34,2671.7,2671.6,0.7833]
[1727565735694,1.7437,2671.7,2671.6,0.7833]
[1727565737594,10.9444,2672.1,2671.6,4.1523]
[1727565737595,0.7456,2672.1,2671.6,4.1523]
[1727565737795,0.7456,2672.1,2671.6,0.7833]
[1727565737796,1.34,2671.7,2671.6,0.7833]
[1727565738195,1.34,2671.7,2671.6,4.5265]
[1727565738397,1.34,2671.7,2671.6,0.4091]
[1727565738599,1.34,2671.7,2671.6,0.78331]
[1727565741104,1.34,2671.7,2671.6,0.4091]
[1727565741105,1.71419,2671.7,2671.6,0.4091]
[1727565741403,9.29439,2671.7,2671.5,0.37421]
[1727565741601,9.29439,2671.7,2671.1,1.1522]
[1727565741602,0.37422,2671.5,2671.1,1.1522]
[1727565741805,1.34,2671.2,2671.1,1.52648]
[1727565770336,0.37428,2671.1,2671.0,3.2078]
[1727565770536,0.78188,2671.1,2671.0,3.2078]
[1727565770841,0.78188,2671.1,2670.7,0.37432]
[1727565770842,0.37431,2671.0,2670.8,0.37432]
[1727565771041,2.1398,2670.9,2670.7,3.58213]
[1727565771433,0.4076,2670.8,2670.7,3.58213]
[1727565773139,1.7476,2670.8,2670.7,3.58213]
[1727565775336,1.7476,2670.8,2670.7,4.56315489]
[1727565776638,1.7476,2670.8,2670.7,6.03374197]
[1727565777345,1.7476,2670.8,2670.7,6.52423461]
[1727565777845,1.7476,2670.8,2670.7,6.03279248]
[1727565778248,1.7476,2670.8,2670.7,2.82499248]
[1727565778544,1.7476,2670.8,2670.7,3.31643461]
[1727565780743,1.34,2670.8,2670.7,10.11690023]
[1727565780943,1.34,2670.8,2670.7,3.80432817]
[1727565781147,1.34,2670.8,2670.7,1.84555693]
[1727565781846,0.3721,2671.1,2671.0,0.37429]
[1727565782050,0.4039,2671.0,2670.9,1.35482842]
[1727565782249,1.7439,2671.0,2670.9,1.35482842]
[1727565785945,1.7439,2671.0,2670.9,2.8267556]
[1727565786449,1.7439,2671.0,2670.9,3.3169783]
[1727565787044,0.3721,2671.1,2671.0,0.37429]
[1727565787248,1.7121,2671.1,2671.0,1.84638007]
[1727565787551,2.49048,2671.1,2671.0,0.98094684]
[1727565787759,2.49048,2671.1,2670.9,1.35524684]
[1727565788153,2.49048,2671.1,2671.0,0.37429]
[1727565788349,2.49048,2671.1,2670.9,1.35524684]
[1727565788650,2.49048,2671.1,2671.0,0.98094684]
[1727565788855,2.1162,2671.1,2671.0,1.35523684]
[1727565789551,2.1162,2671.1,2671.0,0.37429]
[1727565790651,2.1162,2671.1,2671.0,1.35523684]
[1727565793346,2.1162,2671.1,2671.0,0.37429]
[1727565794056,8.3252,2671.1,2671.0,0.37429]
[1727565795156,8.3252,2671.1,2671.0,1.35523684]
[1727565795351,8.3252,2671.1,2671.0,0.37429]
[1727565795552,8.3252,2671.1,2671.0,1.35523684]
[1727565795858,0.348,2671.4,2671.3,0.37425]
[1727565796061,0.37425,2671.3,2671.2,1.35516786]
[1727565796359,1.71425,2671.3,2671.2,0.37426]
[1727565796952,1.71425,2671.3,2671.2,1.35516786]
[1727565799261,1.71425,2671.3,2671.2,0.37426]
[1727565799460,1.34,2671.3,2671.2,0.37426]
[1727565803362,1.34,2671.3,2671.2,1.35516786]
[1727565803960,7.549,2671.3,2671.2,1.35516786]
[1727565807270,7.92325,2671.3,2671.2,1.35516786]
[1727565808267,7.92325,2671.3,2671.2,0.37426]
[1727565808761,7.92325,2671.3,2671.2,1.35564907]
[1727565810368,1.34,2671.3,2671.2,1.35564907]
[1727565810567,4.36302,2671.5,2671.4,0.37424]
[1727565810865,1.71423,2671.5,2671.3,0.98147566]
[1727565811068,1.71423,2671.5,2671.4,0.98147566]
[1727565811069,0.37423,2671.5,2671.4,0.98147566]
[1727565811562,0.37423,2671.5,2671.4,0.37424]
[1727565811762,0.37423,2671.5,2671.4,1.35570566]
[1727565812666,0.74533,2671.5,2671.4,1.35570566]
[1727565813967,6.95433,2671.5,2671.4,1.35570566]
[1727565814167,8.29433,2671.5,2671.4,1.35570566]
[1727565815673,8.29433,2671.5,2671.4,0.37423]
[1727565816268,8.29433,2671.5,2671.4,1.35570566]
[1727565816477,8.29433,2671.5,2671.4,0.37423]
[1727565817174,7.9201,2671.5,2671.3,0.98147566]
[1727565817374,8.29433,2671.5,2671.3,0.98147566]
[1727565817568,8.29433,2671.5,2671.4,0.37424]
[1727565819375,0.37424,2671.4,2671.3,1.35571566]
[1727565819676,0.37424,2671.4,2671.3,2.82882197]
[1727565819974,8.29433,2671.5,2671.4,0.37424]
[1727565820476,0.37424,2671.4,2671.3,1.35571566]
[1727565820677,0.37424,2671.4,2671.3,2.8287974]
[1727565820978,8.29433,2671.5,2671.4,0.37424]
[1727565821577,8.29434,2671.5,2671.3,1.35571566]
[1727565821773,0.37424,2671.4,2671.3,1.35571566]
[1727565821973,0.37424,2671.4,2671.3,0.98147566]
[1727565822477,3.58204,2671.4,2671.3,0.98147566]
[1727565822679,0.37425,2671.3,2671.2,0.75275]
[1727565822882,1.71425,2671.3,2671.2,3.69801674]
[1727565823872,2.10945,2671.3,2671.2,3.69801674]